bitfinex-derivatives/quotes_ETHF0:USTF0_20251021
["timestamp","ask_amount","ask_price","bid_price","bid_amount"]
[1761060494351,0.00218702,4058.5,4058.3,0.44341]
[1761060494551,3.2078,4059.0,4058.6,1.6675]
[1761060494755,0.44337,4058.7,4058.4,1.6675]
[1761060494961,0.44338,4058.6,4058.4,1.6675]
[1761060495165,0.4434,4058.4,4058.2,1.6675]
[1761060495461,0.44622962,4058.4,4058.2,1.6675]
[1761060496162,0.44622962,4058.4,4058.2,2.11091]
[1761060496358,0.00282962,4058.4,4058.2,0.44341]
[1761060496671,0.00282962,4058.4,4058.3,1.6675]
[1761060496962,0.00282962,4058.4,4058.0,1.6675]
[1761060497155,0.44342,4058.2,4058.1,1.6675]
[1761060497355,0.44622962,4058.4,4058.1,1.6675]
[1761060497763,0.44341,4058.3,4057.9,0.35809195]
[1761060497958,0.44347,4057.7,4057.6,0.6847]
[1761060498162,1.6584,4057.6,4056.9,1.6675]
[1761060498469,3.65126,4057.8,4057.4,1.4881]
[1761060498665,0.44344,4058.1,4057.9,0.44345]
[1761060498957,3.21062962,4058.4,4058.3,1.4881]
[1761060500063,1.10822,4059.5,4058.3,1.4881]
[1761060500064,3.2078,4059.1,4059.0,1.93143]
[1761060500271,3.2078,4060.1,4059.6,0.44326]
[1761060500566,3.2078,4060.1,4059.2,0.6292]
[1761060500567,1.5702,4060.0,4059.2,0.6292]
[1761060500765,1.5702,4059.4,4058.3,1.5039]
[1761060501064,1.5702,4058.8,4058.4,1.5062496]
[1761060501266,0.44332,4059.2,4058.7,1.5039]
[1761060501458,0.00269004,4059.4,4058.7,1.5039]
[1761060501667,0.00269004,4059.4,4059.1,1.5039]
[1761060501864,0.00269004,4059.4,4059.3,1.5039]
[1761060502763,0.44332,4059.1,4058.9,3.2078]
[1761060502960,1.5702,4059.0,4058.9,3.2078]
[1761060503367,1.5702,4059.0,4058.5,1.5039]
[1761060503558,0.44334,4058.9,4058.5,1.5039]
[1761060503755,0.44336,4058.7,4058.5,1.5039]
[1761060504563,2.01359,4058.5,4058.4,0.0023496]
[1761060504764,0.44338,4058.6,4058.4,1.5062496]
[1761060505266,3.21049004,4059.4,4058.7,1.5039]
[1761060505468,0.44335,4058.9,4058.7,1.5039]
[1761060506663,0.44332,4059.1,4058.7,1.5039]
[1761060506975,0.44334,4059.0,4058.7,1.5039]
[1761060507161,0.44335,4058.9,4058.7,1.5039]
[1761060507362,1.5702,4059.2,4058.5,1.5039]
[1761060507561,3.21049004,4059.4,4058.5,1.5039]
[1761060507767,3.21049004,4059.4,4058.7,1.5039]
[1761060508359,0.44335,4058.9,4058.7,1.5039]
[1761060508761,0.44339,4058.5,4058.4,0.0023496]
[1761060509174,2.01359,4058.5,4058.4,0.0023496]
[1761060509363,7.01359,4058.5,4058.4,0.0023496]
[1761060509672,2.01359,4058.5,4058.4,0.0023496]
[1761060509867,7.01359,4058.5,4058.4,0.0023496]
[1761060510368,5.44339,4058.5,4058.4,0.0023496]
[1761060510569,0.44346,4057.8,4057.0,1.5039]
[1761060510870,0.44347,4057.8,4057.3,1.5039]
[1761060511067,3.2078,4058.3,4057.9,0.44344]
[1761060511258,3.2078,4058.3,4058.1,1.5039]
[1761060511464,0.44337,4058.7,4057.8,1.5039]
[1761060511758,3.65115,4058.9,4058.6,1.5039]
[1761060511963,0.44339,4058.5,4058.3,4.7117]
[1761060512160,0.44339,4058.5,4058.3,3.2078]
[1761060512360,0.44337,4058.7,4058.3,3.2078]
[1761060512563,0.44337,4058.7,4058.4,2.52289]
[1761060512763,0.44335,4058.9,4058.5,1.5039]
[1761060512960,3.17149004,4059.4,4058.9,1.5039]
[1761060513162,3.17149004,4059.4,4058.9,1.94724]
[1761060513370,1.5702,4059.9,4058.9,1.5039]
[1761060513559,1.5702,4059.8,4058.9,1.94724]
[1761060513964,1.57308302,4059.8,4059.0,0.44333]
[1761060514163,1.57308302,4059.8,4059.1,1.5039]
[1761060514465,0.44612302,4059.8,4059.4,1.5039]
[1761060514671,0.44612302,4059.8,4059.5,0.44327]
[1761060514870,0.00288302,4059.8,4059.7,1.94715]
[1761060515172,0.00288302,4059.8,4059.7,1.5039]
[1761060515674,0.00288302,4059.8,4059.7,2.11062145]
[1761060515866,0.00288302,4059.8,4059.7,7.11062145]
[1761060516170,1.5702,4060.9,4059.9,0.44323]
[1761060516466,0.44318,4060.4,4060.1,1.5039]
[1761060516673,0.44314,4060.8,4060.5,1.5039]
[1761060516975,0.00256802,4060.8,4060.5,1.5039]
[1761060517266,0.44315,4060.7,4060.5,1.5039]
[1761060517573,0.00256802,4060.8,4060.6,0.44315]
[1761060517868,0.00256802,4060.8,4060.7,1.5039]
[1761060518075,0.00256802,4060.8,4060.7,2.11096663]
[1761060518369,0.00256802,4060.8,4060.7,2.11051837]
[1761060519163,0.00256802,4060.8,4060.7,1.5039]
[1761060519775,0.00256802,4060.8,4060.7,2.11005447]
[1761060520071,0.00256802,4060.8,4060.7,7.11005447]
[1761060520265,3.2078,4061.8,4061.3,1.5039]
[1761060520472,0.44299,4062.2,4062.0,1.5039]
[1761060521372,2.01630269,4062.2,4062.0,0.00290782]
[1761060521675,0.44307,4061.4,4060.9,1.5039]
[1761060521969,1.1075,4062.1,4060.8,0.5756]
[1761060521970,0.44307,4061.5,4061.3,1.5039]
[1761060522363,0.44311,4061.1,4060.9,1.5039]
[1761060522567,4.31533,4062.0,4060.9,1.50618876]
[1761060522868,4.31533,4062.0,4061.3,1.5039]
[1761060523175,0.19744218,4061.4,4061.3,1.5039]
[1761060523365,4.31533,4062.0,4061.3,1.5039]
[1761060523566,0.44306,4061.5,4061.3,1.5039]
[1761060524077,3.2078,4062.0,4061.6,1.5039]
[1761060524266,0.44301,4061.9,4061.8,2.3232784]
[1761060524473,0.44301,4061.9,4061.8,2.21508039]
[1761060524873,2.01321,4061.9,4061.8,0.71118039]
[1761060525174,0.44301,4061.9,4061.8,2.21508039]
[1761060525576,0.443,4062.0,4061.9,1.5039]
[1761060525769,2.0132,4062.0,4061.9,1.52971942]
[1761060525976,5.221,4062.0,4061.9,1.36643025]
[1761060526278,3.6508,4062.0,4061.9,2.05179122]
[1761060526462,3.6508,4062.0,4061.9,2.87033025]
[1761060527272,0.443,4062.0,4061.9,2.05179122]
[1761060527472,0.44610269,4062.2,4062.1,1.5039]
[1761060528079,2.0132,4062.0,4061.9,0.8178854]
[1761060528273,0.443,4062.0,4061.9,1.5039]
[1761060528472,0.00311269,4062.2,4061.8,1.5039]
[1761060528780,0.44609269,4062.2,4062.1,2.32195499]
[1761060529278,0.00311269,4062.2,4062.1,2.32195499]
[1761060530180,2.01326,4061.5,4061.3,1.22365925]
[1761060530385,0.44311,4061.0,4060.9,0.00228876]
[1761060530685,0.44311,4061.0,4060.9,1.46998876]
[1761060532070,0.44311,4061.0,4059.9,10.06242209]
[1761060532071,0.44325,4059.7,4059.6,1.62272261]
[1761060532372,1.6683,4059.9,4059.2,1.62272261]
[1761060532572,44.0078,4061.5,4059.7,0.44325]
[1761060532770,1.4608,4060.5,4059.8,1.3431]
[1761060532967,0.44318,4060.4,4060.2,1.3431]
[1761060533176,0.44316,4060.6,4060.2,0.00202956]
[1761060533371,3.2078,4061.2,4060.5,4.5509]
[1761060533575,1.4608,4061.2,4061.0,3.2078]
[1761060533772,1.05106,4061.6,4061.0,3.2078]
[1761060533980,1.4608,4061.5,4061.4,0.61393798]
[1761060534183,0.44307,4061.4,4061.0,4.994]
[1761060534682,0.44307,4061.4,4061.3,0.61395453]
[1761060534979,0.44306,4061.5,4061.0,3.2078]
[1761060535282,1.90386,4061.5,4061.3,0.61390504]
[1761060535482,1.4608,4061.4,4061.3,0.61390504]
[1761060535880,1.90385,4061.7,4061.3,0.61390504]
[1761060536083,0.44305,4061.7,4061.5,3.2078]
[1761060536475,1.90389,4061.2,4061.0,0.61390504]
[1761060536680,0.44312,4060.9,4060.8,0.61390504]
[1761060536876,1.4608,4060.8,4060.7,0.61390504]
[1761060537380,1.4608,4060.8,4060.7,0.61468464]
[1761060537778,1.90392,4060.9,4060.7,0.61468464]
[1761060538082,1.90392,4060.9,4060.8,0.70101859]
[1761060538994,4.6686,4061.7,4061.0,0.4431]
[1761060539283,1.4608,4061.2,4061.1,1.31570323]
[1761060539486,1.4608,4061.2,4061.1,0.70101859]
[1761060540892,1.90388,4061.3,4061.1,0.70101859]
[1761060541079,1.90386,4061.5,4061.2,0.70101859]
[1761060541281,1.90386,4061.5,4061.3,0.70101859]
[1761060541583,1.4608,4061.5,4061.4,0.70101859]
[1761060541779,3.21091269,4062.2,4061.4,1.31570323]
[1761060541780,1.4608,4062.1,4061.4,1.31570323]
[1761060541978,1.4608,4062.0,4061.9,3.2078]
[1761060542178,1.4608,4062.0,4061.9,3.90881859]
[1761060542986,1.4608,4062.0,4061.9,0.70101859]
[1761060543892,0.608,4061.6,4061.4,0.61468464]
[1761060544084,1.4608,4062.0,4061.5,5.25471628]
[1761060544283,3.21091269,4062.2,4062.0,1.3431]
[1761060544284,0.00311269,4062.2,4062.0,1.3431]
[1761060544480,1.46391269,4062.2,4062.1,0.70381628]
[1761060544681,1.46391269,4062.2,4062.1,1.32122636]
[1761060544893,1.46391269,4062.2,4062.1,0.70381628]
[1761060545281,0.00311269,4062.2,4062.1,2.48990628]
[1761060545592,0.00311269,4062.2,4062.1,8.14601747]
[1761060545786,0.022,4062.8,4062.2,1.3431]
[1761060545988,1.4608,4062.7,4062.6,3.2078]
[1761060546295,1.4608,4062.7,4062.6,0.70381628]
[1761060546296,1.90373,4062.7,4062.6,0.70381628]
[1761060546793,1.90593862,4062.7,4062.6,0.70381628]
[1761060546993,6.90593862,4062.7,4062.6,0.70381628]
[1761060547188,0.44297,4062.4,4062.1,0.98467499]
[1761060547498,1.4608,4062.3,4062.2,0.7175536]
[1761060547992,1.4608,4062.3,4062.2,1.1605336]
[1761060548191,0.00220862,4062.7,4062.2,1.1605336]
[1761060548192,1.4608,4062.6,4062.3,1.3431]
[1761060548391,1.4608,4062.6,4062.5,3.2078]
[1761060548588,0.00220862,4062.7,4062.6,1.78604]
[1761060548793,0.00220862,4062.7,4062.6,2.5035936]
[1761060550485,3.2078,4064.2,4062.6,2.5035936]
[1761060550486,1.4608,4064.7,4062.9,1.3188]
[1761060550681,1.4608,4064.7,4064.0,3.2078]
[1761060550890,1.4608,4065.1,4064.3,0.61672101]
[1761060551190,0.4427,4064.9,4064.6,3.2078]
[1761060551384,1.46386359,4064.9,4064.7,0.71598175]
[1761060551581,0.4427,4064.8,4064.6,3.20962561]
[1761060551783,0.44575359,4064.9,4064.7,0.714753]
[1761060552097,0.00306359,4064.9,4064.8,2.033553]
[1761060552294,0.00306359,4064.9,4064.8,1.33147401]
[1761060552498,1.46386359,4064.9,4064.8,1.33147401]
[1761060552792,0.4428,4063.9,4063.8,0.61672101]
[1761060553089,0.44282,4063.7,4063.6,3.2078]
[1761060553291,1.4608,4064.2,4063.9,0.44279]
[1761060553481,1.4608,4064.7,4064.1,3.2078]
[1761060553694,1.4608,4064.1,4064.0,0.61436992]
[1761060553981,0.44277,4064.2,4064.0,3.82436484]
[1761060554186,1.90357,4064.2,4064.0,3.20999492]
[1761060554796,1.4608,4064.1,4064.0,3.82436484]
[1761060555093,1.4608,4064.1,4064.0,3.20999492]
[1761060555296,6.4608,4064.1,4064.0,0.00219492]
[1761060556996,1.4608,4064.1,4064.0,0.00219492]
[1761060559602,1.4608,4064.1,4064.0,3.20999492]
[1761060559895,1.10682,4064.6,4064.0,3.20999492]
[1761060559896,1.3655,4064.6,4064.0,3.20999492]
[1761060560201,1.80827,4064.2,4064.0,3.20999492]
[1761060560695,1.3655,4064.1,4064.0,3.20999492]
[1761060561093,1.3655,4064.1,4064.0,0.00219492]
[1761060561496,4.5733,4064.1,4064.0,0.00219492]
[1761060561688,0.594,4064.0,4063.2,0.61436992]
[1761060561893,1.4168,4062.8,4062.7,3.2078]
[1761060562496,1.4168,4063.2,4062.9,1.2357]
[1761060562699,0.44291,4062.9,4062.7,3.82216992]
[1761060562889,0.44291,4062.9,4062.7,3.82463226]
[1761060563090,1.4168,4063.2,4062.8,1.2357]
[1761060563287,1.4168,4062.8,4062.7,3.86836348]
[1761060563495,2.0108,4062.8,4062.7,3.86836348]
[1761060563999,2.0108,4062.8,4062.7,3.21026234]
[1761060564298,2.0108,4062.8,4062.7,0.00246234]
[1761060564702,1.85976,4062.4,4062.2,0.61436992]
[1761060565001,1.85982,4061.8,4061.7,3.2078]
[1761060565200,1.4168,4061.8,4061.7,3.91926789]
[1761060565398,1.4168,4062.4,4061.8,1.2381]
[1761060565590,1.8598,4062.0,4061.9,0.71146789]
[1761060566005,1.4168,4062.0,4061.9,0.71146789]
[1761060566404,0.00205989,4062.4,4061.9,8.97397983]
[1761060566604,1.85977,4062.3,4062.2,3.2078]
[1761060566906,1.4168,4062.3,4061.8,0.64622025]
[1761060567112,1.4168,4062.3,4061.9,0.71153206]
[1761060567313,1.4168,4062.1,4062.0,0.71153206]
[1761060568615,0.00205989,4062.4,4061.8,0.64622025]
[1761060568616,1.4168,4061.9,4061.8,0.64622025]
[1761060568810,1.4168,4061.9,4061.8,0.00208771]
[1761060571006,1.8599,4061.1,4060.7,0.65267095]
[1761060571211,1.8599,4061.1,4060.6,3.2078]
[1761060571413,1.8599,4061.1,4060.3,0.44318]
[1761060571711,1.4168,4061.1,4060.7,0.65204413]
[1761060571906,1.4168,4061.1,4061.0,0.01085345]
[1761060572819,1.86,4060.2,4060.1,3.2078]
[1761060573317,1.86006,4059.7,4059.6,3.2078]
[1761060573614,1.86006,4059.7,4059.6,3.85732009]
[1761060574014,1.4168,4058.9,4058.8,3.2078]
[1761060574207,1.41953309,4058.9,4058.8,3.2078]
[1761060574403,1.41953309,4058.9,4058.8,3.21056424]
[1761060574601,1.41953309,4058.9,4058.8,3.85432434]
[1761060574914,1.41953309,4058.9,4058.8,0.64652434]
[1761060575505,0.00273309,4058.9,4058.8,0.64652434]
[1761060575810,11.06417,4066.1,4058.8,0.64652434]
[1761060575811,3.2078,4059.7,4058.8,9.56589339]
[1761060576010,1.4168,4060.2,4059.4,1.2381]
[1761060576318,0.594,4060.7,4059.8,0.44324]
[1761060576319,1.4168,4059.9,4059.8,0.44324]
[1761060576612,1.4168,4060.4,4059.8,0.44324]
[1761060576911,0.44329,4059.4,4059.2,3.6511]
[1761060577115,1.4168,4059.3,4059.2,3.2078]
[1761060577513,1.1081,4059.9,4058.8,0.64652434]
[1761060577514,0.44333,4059.0,4058.8,0.64652434]
[1761060577718,1.4168,4058.9,4058.8,0.64652434]
[1761060578808,1.4168,4058.9,4058.8,0.00276424]
[1761060579008,1.4168,4058.9,4058.8,0.65468436]
[1761060579816,1.4168,4058.9,4058.8,0.00276424]
[1761060580012,3.06794,4059.0,4058.8,0.00276424]
[1761060580214,3.51128,4059.0,4058.8,0.00276424]
[1761060581417,1.10843,4058.7,4057.9,3.2078]
[1761060581819,0.44344,4058.1,4057.9,3.2078]
[1761060582014,3.06794,4059.0,4057.9,4.28329727]
[1761060582210,1.4168,4058.9,4058.0,1.4869]
[1761060582412,1.4168,4058.9,4057.9,3.83984727]
[1761060582616,1.4168,4058.3,4058.0,0.00299482]
[1761060582816,1.4168,4058.3,4058.1,0.44342]
[1761060583126,1.4168,4058.8,4058.6,0.44337]
[1761060583323,1.4168,4058.7,4058.4,0.44339]
[1761060583518,1.4168,4058.5,4058.4,0.44339]
[1761060583818,1.86016,4058.8,4058.5,0.44338]
[1761060584022,1.4168,4058.8,4058.5,0.44338]
[1761060584324,1.4168,4058.4,4058.1,1.4869]
[1761060584625,1.4168,4058.9,4058.0,1.93332482]
[1761060584926,3.06794,4059.0,4058.0,1.93332482]
[1761060584927,1.4168,4058.7,4058.4,1.4869]
[1761060585222,1.4168,4058.3,4058.0,1.48989482]
[1761060585620,1.4168,4058.3,4058.1,0.44342]
[1761060585821,3.06794,4059.0,4058.0,0.00299482]
[1761060585822,1.4168,4058.7,4058.2,1.4869]
[1761060586323,1.86017,4058.7,4058.5,0.44338]
[1761060586724,1.4168,4058.1,4058.0,0.00299482]
[1761060589331,2.0108,4057.9,4057.8,0.0246439]
[1761060589716,1.86032,4057.3,4056.7,3.2078]
[1761060590019,1.4168,4057.1,4056.8,0.71010683]
[1761060590225,1.4168,4056.8,4056.7,3.2078]
[1761060590423,1.4168,4056.3,4056.2,0.6167063]
[1761060590728,1.4384,4056.6,4056.3,1.83642]
[1761060590928,0.4436,4056.6,4056.4,0.71061857]
[1761060591224,1.4384,4056.3,4056.2,0.0023362]
[1761060591528,1.88197,4056.8,4056.2,1.36972472]
[1761060591730,1.4384,4056.7,4056.3,1.15456544]
[1761060592025,1.4384,4056.7,4056.2,0.0023362]
[1761060592026,1.4384,4056.6,4056.4,0.71094544]
[1761060592330,1.4384,4056.4,4056.2,2.6656209]
[1761060592627,1.4384,4056.4,4056.3,1.15427246]
[1761060592828,1.4384,4056.6,4056.5,0.4436]
[1761060593030,1.4384,4056.6,4056.5,1.15425246]
[1761060593432,0.00254938,4057.1,4056.9,1.83636]
[1761060593734,0.00254938,4057.1,4057.0,2.10345246]
[1761060594029,1.44094938,4057.1,4057.0,0.71065246]
[1761060595420,0.00254938,4057.1,4057.0,2.10345246]
[1761060595619,0.00254938,4057.1,4057.0,2.71837517]
[1761060596428,0.00254938,4057.1,4057.0,2.10345246]
[1761060596832,0.00254938,4057.1,4057.0,7.92192347]
[1761060597326,0.00254938,4057.1,4057.0,2.10345246]
[1761060598225,1.88448938,4057.1,4057.0,1.53199198]
[1761060598432,1.88448938,4057.1,4057.0,0.71065246]
[1761060599629,1.88448938,4057.1,4057.0,1.53347689]
[1761060600033,1.88448938,4057.1,4057.0,0.71065246]
[1761060600429,1.88448938,4057.1,4057.0,1.32840928]
[1761060600633,1.44094938,4057.1,4057.0,1.53347689]
[1761060600832,0.5499,4060.0,4057.0,1.53347689]
[1761060600833,1.4384,4058.2,4058.1,0.44343]
[1761060601033,3.2078,4058.5,4058.3,1.3928]
[1761060601233,4.6462,4058.5,4058.4,0.68350593]
[1761060601531,1.4384,4058.9,4058.8,0.44334]
[1761060601725,3.2078,4059.0,4058.9,1.3928]
[1761060602031,4.6462,4059.0,4058.9,1.30080098]
[1761060602332,3.20989783,4059.0,4058.9,3.55990274]
[1761060602527,0.00209783,4059.0,4058.9,2.73681022]
[1761060602727,0.00209783,4059.0,4058.9,3.97144901]
[1761060603034,0.00209783,4059.0,4058.9,0.68350593]
[1761060603035,1.44049783,4059.0,4058.9,0.68350593]
[1761060603233,1.44049783,4059.0,4058.9,1.50615682]
[1761060603535,0.00209783,4059.0,4058.9,3.1637623]
[1761060603739,3.20570217,4059.5,4059.4,1.83609]
[1761060604031,1.4384,4060.2,4060.1,0.44321]
[1761060604228,1.4384,4060.2,4060.1,0.68350593]
[1761060604428,3.2078,4060.7,4060.6,0.44316]
[1761060604624,3.2078,4061.2,4060.9,1.83592]
[1761060604824,5.0893,4061.2,4061.1,0.61527061]
[1761060605030,5.09197751,4061.2,4061.1,1.29877654]
[1761060605231,3.65356751,4061.2,4061.1,1.29877654]
[1761060605430,4.64887751,4061.2,4061.1,0.68350593]
[1761060605621,4.64887751,4061.2,4061.1,1.29817398]
[1761060605822,9.64887751,4061.2,4061.1,0.68350593]
[1761060606438,4.64887751,4061.2,4061.1,0.68350593]
[1761060607827,3.21047751,4061.2,4061.1,0.68350593]
[1761060608036,3.21047751,4061.2,4061.1,2.07630593]
[1761060608435,3.21047751,4061.2,4061.1,2.68966773]
[1761060608630,3.2078,4061.7,4061.6,1.83585]
[1761060608832,0.44298,4062.3,4061.8,1.83582]
[1761060609033,4.6462,4062.4,4062.1,1.3928]
[1761060609232,4.6462,4062.4,4062.2,0.68350593]
[1761060609428,4.6462,4062.4,4062.3,0.68350593]
[1761060609429,3.2078,4062.4,4062.3,0.68350593]
[1761060609632,0.00299984,4062.4,4062.3,2.68936512]
[1761060609832,0.00299984,4062.4,4062.3,2.07630593]
[1761060610040,1.44139984,4062.4,4062.3,1.84304868]
[1761060610239,0.00299984,4062.4,4062.3,3.67881868]
[1761060610440,0.00299984,4062.4,4062.3,3.06642929]
[1761060610748,5.1961,4064.0,4062.4,1.9478]
[1761060610933,3.2078,4064.0,4063.7,0.44281]
[1761060611240,3.65058,4064.0,4063.9,1.3928]
[1761060611542,3.65058,4064.0,4063.4,1.3928]
[1761060611740,3.65249197,4064.0,4063.6,0.44282]
[1761060611951,0.00191197,4064.0,4063.9,1.3928]
[1761060612539,2.21239,4066.9,4063.9,1.3928]
[1761060612540,4.6462,4065.8,4064.0,0.555]
[1761060612731,0.44266,4065.2,4064.9,3.2078]
[1761060613037,0.44271,4064.8,4064.3,9.362]
[1761060613244,0.44267,4065.1,4064.8,1.3928]
[1761060613538,0.44267,4065.1,4064.7,3.2078]
[1761060613737,0.4428,4063.9,4063.7,3.2078]
[1761060613941,0.44281,4063.8,4063.6,1.3928]
[1761060614942,0.44283,4063.6,4063.4,0.00253372]
[1761060615146,4.6462,4064.7,4063.7,0.44281]
[1761060615338,4.6462,4064.7,4063.9,1.3928]
[1761060615543,3.2078,4064.7,4064.5,1.3928]
[1761060615842,0.44272,4064.7,4064.5,1.3928]
[1761060616139,0.44272,4064.7,4064.2,3.65056]
[1761060616140,1.88111,4064.7,4064.3,1.3928]
[1761060616442,0.44274,4064.5,4064.3,1.3928]
[1761060617734,0.44272,4064.7,4064.3,1.3928]
[1761060617935,0.00289265,4065.1,4064.3,1.3928]
[1761060618140,0.44556265,4065.1,4064.7,1.8355]
[1761060618333,0.44556265,4065.1,4065.0,1.2809]
[1761060618334,0.00289265,4065.1,4065.0,1.2809]
[1761060618642,0.00289265,4065.1,4064.4,3.2078]
[1761060618942,0.00289265,4065.1,4064.7,1.2809]
[1761060619350,0.00289265,4065.1,4065.0,1.2809]
[1761060620246,3.65035,4066.2,4065.2,2.38753]
[1761060620439,0.44256,4066.1,4065.9,1.2809]
[1761060620745,0.4426,4065.7,4065.6,3.2078]
[1761060620945,0.44259,4065.8,4065.6,3.65041]
[1761060621131,0.00255892,4065.8,4065.7,1.3414]
[1761060621337,0.00255892,4065.8,4065.7,6.3414]
[1761060621539,0.02171034,4065.8,4065.7,6.90246511]
[1761060621744,0.02171034,4065.8,4065.7,0.56106511]
[1761060621745,0.46430034,4065.8,4065.7,0.56106511]
[1761060621944,0.46430034,4065.8,4065.6,3.2078]
[1761060622143,0.02171034,4065.8,4065.7,1.3414]
[1761060622644,0.03635735,4065.8,4065.7,0.56601749]
[1761060622844,0.03635735,4065.8,4065.1,3.2078]
[1761060622845,0.44265,4065.2,4065.1,3.2078]
[1761060623038,0.44268,4065.0,4064.8,1.78409]
[1761060623348,3.2078,4065.7,4065.1,1.3414]
[1761060623550,0.44265,4065.3,4065.1,1.78406]
[1761060623743,0.03379843,4065.4,4064.8,0.55650225]
[1761060623744,1.72248,4065.0,4064.8,0.55650225]
[1761060624043,3.24159843,4065.4,4064.8,1.3414]
[1761060624245,0.47642843,4065.4,4065.3,1.3414]
[1761060624544,0.03379843,4065.4,4065.3,1.3414]
[1761060625043,1.31359843,4065.4,4065.2,1.78405]
[1761060625248,0.03379843,4065.4,4065.3,1.3414]
[1761060625640,0.44267,4065.1,4064.9,1.3414]
[1761060625845,0.44266,4065.2,4065.0,1.3414]
[1761060626049,2.80149735,4065.9,4065.0,1.3414]
[1761060626344,0.519,4068.8,4065.8,1.3414]
[1761060626345,1.2798,4067.5,4065.8,1.3414]
[1761060626547,4.5096,4067.8,4066.9,4.5492]
[1761060626747,0.4424,4067.6,4067.0,3.2078]
[1761060626945,1.2798,4067.4,4067.0,4.5492]
[1761060627150,1.2798,4067.3,4067.0,0.00303493]
[1761060627447,1.28273471,4067.4,4067.1,1.3414]
[1761060627650,1.28273471,4067.4,4067.0,0.00303493]
[1761060627846,0.00293471,4067.4,4067.0,1.34443493]
[1761060628048,1.72223,4067.3,4067.0,4.55223493]
[1761060628246,0.00293471,4067.4,4067.1,1.3414]
[1761060628448,0.00293471,4067.4,4067.3,1.3414]
[1761060628649,1.10561,4069.1,4067.3,1.3414]
[1761060628650,1.2798,4068.8,4067.7,1.3414]
[1761060628952,0.44225,4069.0,4068.5,1.3414]
[1761060629153,1.2798,4069.3,4068.5,1.3414]
[1761060629349,1.2798,4069.3,4068.3,3.2078]
[1761060629545,0.44231,4068.4,4068.0,0.5343]
[1761060629744,3.21084739,4069.3,4067.8,3.2078]
[1761060629745,1.72212,4068.3,4067.8,3.65016]
[1761060629949,0.44227,4068.8,4068.1,0.44233]
[1761060630151,0.01257106,4068.5,4068.4,3.2078]
[1761060630754,0.01515194,4068.5,4068.4,3.2078]
[1761060631346,0.45745194,4068.5,4068.4,4.5492]
[1761060631646,0.45745194,4068.5,4068.4,5.0944385]
[1761060631843,0.44234,4068.1,4067.9,3.2078]
[1761060632048,1.29495194,4068.5,4068.0,1.3414]
[1761060632049,0.44231,4068.4,4068.0,1.3414]
[1761060632459,1.29495194,4068.5,4068.0,1.3414]
[1761060632654,0.44231,4068.4,4068.0,1.3414]
[1761060632848,0.01515194,4068.2,4068.1,1.78374]
[1761060633244,1.72214,4068.1,4067.9,3.76249479]
[1761060633455,0.44239,4067.7,4067.3,3.65022]
[1761060633650,0.44239,4067.7,4067.4,2.00103615]
[1761060633847,1.2798,4068.0,4067.3,3.75164787]
[1761060633848,0.45755194,4067.6,4067.3,3.75164787]
[1761060634049,0.01515194,4067.6,4067.5,1.3414]
[1761060634254,0.01515194,4067.6,4067.5,2.00104772]
[1761060634860,1.7221,4068.5,4068.2,0.44232]
[1761060635057,0.44227,4068.8,4068.0,1.3414]
[1761060635360,0.519,4069.6,4068.5,3.2078]
[1761060635547,1.72208,4068.6,4068.5,3.2078]
[1761060635859,1.2798,4068.2,4068.0,0.44234]
[1761060636061,3.2078,4069.2,4067.8,4.99157]
[1761060636062,0.44232,4068.3,4067.8,4.99157]
[1761060636257,1.72214,4068.2,4067.8,4.99157]
[1761060636459,1.2798,4067.9,4067.8,3.2078]
[1761060636959,1.2798,4067.4,4067.3,3.75164787]
[1761060637354,0.44241,4067.5,4067.3,4.40344252]
[1761060637553,0.4424,4067.6,4067.3,3.75164787]
[1761060637762,0.44241,4067.5,4067.3,5.09304787]
[1761060637959,1.72221,4067.5,4067.3,5.09304787]
[1761060638157,0.44241,4067.5,4067.3,3.2078]
[1761060638358,0.44241,4067.5,4067.0,0.00303493]
[1761060638359,2.24125,4067.1,4067.0,0.00303493]
[1761060638559,5.44905,4067.1,4067.0,0.00303493]
[1761060638763,1.2798,4067.5,4067.0,1.34443493]
[1761060638963,1.2798,4067.1,4067.0,0.00303493]
[1761060639465,1.2798,4067.1,4067.0,0.65568363]
[1761060639658,6.7988,4067.1,4067.0,0.00303493]
[1761060639962,1.2798,4067.1,4067.0,0.00303493]
[1761060640463,1.7988,4067.1,4067.0,0.00303493]
[1761060640866,1.7988,4067.1,4066.4,3.81913771]
[1761060640867,5.519,4067.1,4066.4,2.58056]
[1761060641065,1.2798,4066.1,4065.7,0.61133771]
[1761060641364,0.44262,4065.5,4065.4,0.60946542]
[1761060641565,0.44262,4065.5,4065.4,9.34e-06]
[1761060641566,1.72242,4065.5,4065.4,9.34e-06]
[1761060641865,0.44266,4065.2,4064.9,1.3414]
[1761060642067,3.2078,4066.4,4065.4,1.3414]
[1761060642359,3.2078,4066.4,4065.7,1.3414]
[1761060642558,3.2078,4066.4,4065.9,1.3414]
[1761060642753,3.2078,4066.4,4066.2,1.3414]
[1761060642954,0.44256,4066.1,4065.5,1.3414]
[1761060643150,0.00268044,4066.1,4065.6,0.4426]
[1761060643352,4.9302,4065.7,4065.5,0.00192085]
[1761060643555,1.2798,4065.6,4065.5,0.00192085]
[1761060644560,3.6504,4065.7,4065.5,0.00192085]
[1761060644955,0.4426,4065.7,4065.5,0.00192085]
[1761060645163,0.4426,4065.7,4065.5,1.34332085]
[1761060645757,0.4426,4065.7,4065.5,0.00192085]
[1761060645954,1.28248044,4066.1,4065.5,0.00192085]
[1761060646152,0.44261,4065.7,4065.5,0.00192085]
[1761060646355,1.2798,4065.6,4065.5,0.00192085]
[1761060646553,0.44259,4065.9,4065.6,1.3414]
[1761060646764,0.44524044,4066.1,4065.6,1.3414]
[1761060646964,0.44259,4065.8,4065.6,1.3414]
[1761060647168,0.44259,4065.8,4065.5,1.34332085]
[1761060647363,0.00268044,4066.1,4066.0,0.44257]
[1761060647562,0.00268044,4066.1,4066.0,1.78397]
[1761060648369,0.00268044,4066.1,4065.5,0.00192085]